[Event "FishPartners Open 2018"]
[Site "Spakenburg"]
[Date "2018.07.07"]
[Round "5"]
[White "Kazarian, Anna-Maja"]
[Black "Van de Griendt, Jan Willem"]
[Result "1/2-1/2"]
[ECO "C50"]
[WhiteElo "2150"]
[BlackElo "2335"]
[Annotator "NA"]
[PlyCount "128"]
[EventDate "2018.07.07"]
[EventType "swiss"]
[EventCountry "NED"]
[SourceTitle "playchess.com"]
[Source "ChessBase"]
[SourceQuality "1"]
[TimeControl "1500"]

1. e4 {[%emt 0:00:02]} e5 {[%emt 0:00:01]} 2. Nf3 {[%emt 0:00:01]} Nc6 {[%emt 0:00:01]} 3. Bc4 {[%emt 0:00:04]} Bc5 {[%emt 0:00:21]} 4. O-O {[%emt 0:00:02]} d6 {[%emt 0:00:22]} 5. c3 {[%emt 0:00:06]} Bb6 {[%emt 0:00:44]} 6. Re1 {[%emt 0:00:57]} Nf6 {[%emt 0:00:09]} 7. d3 {[%emt 0:00:04]} h6 {[%emt 0:00:23] C54: Giuoco Piano: 4 c3 Nf6, main lines with 5 d4 and 5 d3} 8. a4 {[%emt 0:00:20]} O-O {[%emt 0:00:28]} 9. h3 {[%emt 0:00:14]} a6 {[%emt 0:01:26]} 10. b4 {[%emt 0:00:27]} (10. Nbd2 Re8 11. b4 Ba7 12. Rb1 Bd7 13. b5 axb5 14. axb5 Na5 15. Ba2 c6 16. bxc6 bxc6 {1-0 (46) Swiercz,D (2657)-Petrosian,T (2613) Las Vegas 2018}) 10... Ne7 {[%emt 0:00:07]} 11. d4 {[%emt 0:00:39]} Ng6 {[%emt 0:00:07]} 12. dxe5 $146 {[%emt 0:00:50]} ({Predecessor:} 12. Nbd2 Re8 13. Qc2 c6 14. d5 Qc7 15. Ba3 Nf4 16. dxc6 bxc6 17. Rac1 {1-0 (38) Kalvach,L (1881)-Franc,O (1598) Ricany 2008}) 12... dxe5 {[%emt 0:00:03]} 13. Qxd8 {[%emt 0:00:10]} Rxd8 {[%emt 0:00:02]} 14. Na3 {[%emt 0:00:11]} Bd7 {[%emt 0:01:24]} 15. a5 {[%emt 0:00:19]} Ba7 {[%emt 0:00:01]} 16. Bb3 {[%emt 0:00:06]} Bc6 {[%emt 0:00:12]} 17. Bc2 {[%emt 0:00:11]} Re8 {[%emt 0:00:22]} 18. Bb2 {[%emt 0:00:14]} Rad8 {[%emt 0:02:34]} 19. c4 {[%emt 0:00:49]} Nh7 {[%emt 0:01:11]} 20. b5 {[%emt 0:00:10]} Bd7 {[%emt 0:00:02]} 21. Bc3 {[%emt 0:02:18]} Nhf8 {[%emt 0:00:24]} 22. Rab1 {[%emt 0:03:08]} Bc5 {[%emt 0:00:05]} 23. Bb4 {[%emt 0:00:01]} Ne6 {[%emt 0:00:26]} 24. Red1 {[%emt 0:00:27]} f6 {[%emt 0:00:26]} 25. Bxc5 {[%emt 0:00:48]} Nxc5 {[%emt 0:00:02]} 26. Rd5 {[%emt 0:00:02]} Ne6 {[%emt 0:00:22]} 27. Rbd1 {[%emt 0:00:41]} Bc8 {[%emt 0:00:06]} 28. Bb3 {[%emt 0:00:09]} Ngf4 {[%emt 0:01:36]} 29. Rxd8 {[%emt 0:00:03]} Rxd8 {[%emt 0:00:01]} 30. Rxd8+ {[%emt 0:00:06]} Nxd8 {[%emt 0:00:02]} 31. c5+ {[%emt 0:00:52]} Kf8 {[%emt 0:00:27]} 32. Bc4 {[%emt 0:00:41]} c6 {[%emt 0:01:10]} 33. bxa6 {[%emt 0:00:32]} bxa6 {[%emt 0:00:01]} 34. Nd2 {[%emt 0:00:19]} Nfe6 {[%emt 0:00:51]} 35. Nb3 {[%emt 0:00:03]} Ke7 {[%emt 0:00:20]} 36. Nc2 {[%emt 0:00:02]} Nc7 {[%emt 0:00:15]} 37. Nb4 {[%emt 0:00:19]} Be6 {[%emt 0:03:24]} 38. Bxe6 {[%emt 0:00:37]} Kxe6 {[%emt 0:00:02]} 39. Kf1 {[%emt 0:00:07]} Kd7 {[%emt 0:00:00]} 40. Ke2 {[%emt 0:00:02]} Nde6 {[%emt 0:00:15]} 41. Ke3 {[%emt 0:01:31]} Nf4 {[%emt 0:00:14]} 42. g3 {[%emt 0:00:36]} Nxh3 {[%emt 0:00:28]} 43. f4 {[%emt 0:01:48]} exf4+ {[%emt 0:00:01]} 44. gxf4 {[%emt 0:00:01]} g5 $11 {[%emt 0:00:01]} 45. fxg5 {[%emt 0:00:26]} Nxg5 {[%emt 0:00:05]} 46. Nd4 {[%emt 0:00:10]} Nge6 {[%emt 0:00:08]} 47. Nxe6 {[%emt 0:00:04]} Nxe6 {[%emt 0:00:07]} 48. Nxa6 {[%emt 0:00:01]} h5 {[%emt 0:01:05]} 49. Nb4 {[%emt 0:00:57]} Nxc5 {[%emt 0:00:52]} 50. a6 {[%emt 0:00:01]} Na4 {[%emt 0:00:01]} 51. a7 {[%emt 0:00:15]} Nb6 {[%emt 0:00:01]} 52. Kf4 {[%emt 0:00:10]} Kc7 {[%emt 0:00:01]} 53. Kg3 {[%emt 0:00:08]} Kb7 {[%emt 0:00:06]} 54. Kh4 {[%emt 0:00:05]} c5 {[%emt 0:00:19]} 55. Nc2 {[%emt 0:00:09]} Kxa7 {[%emt 0:00:05]} 56. Kxh5 {[%emt 0:00:02]} Kb7 {[%emt 0:00:05]} 57. Kg6 {[%emt 0:00:00]} Nd7 {[%emt 0:00:01]} 58. Kf5 {[%emt 0:00:06]} Kc6 {[%emt 0:00:01]} 59. Ke6 {[%emt 0:00:02]} c4 {[%emt 0:00:06]} 60. Ne3 {[%emt 0:00:09]} c3 {[%emt 0:00:03]} 61. Nd5 {[%emt 0:00:26]} Nc5+ {[%emt 0:00:05]} 62. Kxf6 {[%emt 0:00:07]} Nxe4+ {[%emt 0:00:03]} 63. Ke5 {[%emt 0:00:00]} Kc5 {[%emt 0:00:08]} 64. Nxc3 {[%emt 0:00:02]} Nxc3 {Ke4} 1/2-1/2

[Event "FishPartners Open 2018"]
[Site "Spakenburg"]
[Date "2018.07.07"]
[Round "5"]
[White "Van Brummelen, Kevin"]
[Black "Peelen, Piet"]
[Result "1-0"]
[ECO "B10"]
[WhiteElo "2136"]
[BlackElo "2336"]
[Annotator "NA"]
[PlyCount "101"]
[EventDate "2018.07.07"]
[EventType "swiss"]
[EventCountry "NED"]
[SourceTitle "playchess.com"]
[Source "ChessBase"]
[SourceQuality "1"]
[TimeControl "1500"]

1. e4 {[%emt 0:00:03]} c6 {[%emt 0:00:01]} 2. c4 {[%emt 0:00:12]} d5 {[%emt 0:00:13]} 3. cxd5 {[%emt 0:00:03]} cxd5 {[%emt 0:00:01]} 4. exd5 {[%emt 0:00:02]} Nf6 {[%emt 0:00:02]} 5. Nc3 {[%emt 0:00:03]} Nxd5 {[%emt 0:00:19]} 6. d4 {[%emt 0:00:02]} e6 {[%emt 0:00:39]} 7. Nf3 {[%emt 0:00:05]} Bb4 {[%emt 0:00:02]} 8. Bd2 {[%emt 0:00:01]} Nc6 {[%emt 0:00:04]} 9. Bd3 {[%emt 0:00:09]} Be7 {[%emt 0:00:20]} 10. Nxd5 {[%emt 0:00:43] B14: Caro-Kann (Panow-Angriff)} Qxd5 {[%emt 0:00:21]} 11. Bc3 {[%emt 0:00:20]} (11. O-O Bd7 12. Bc3 O-O 13. Re1 Rfd8 14. Be4 Qh5 15. Ne5 Qxd1 16. Raxd1 Rac8 17. Nxc6 Bxc6 {½-½ (30) Fang,Y (2499)-Wang,H (2710) Hangzhou 2018}) 11... Nb4 $146 {[%emt 0:02:30]} ({Vorgänger:} 11... O-O 12. O-O Rd8 13. Re1 Qd6 14. a3 Bd7 15. Qc2 h6 16. Rad1 Rac8 17. Bh7+ Kh8 18. Be4 Bf6 19. d5 exd5 20. Rxd5 {½-½ (52) Gross,D (2465)-Kachiani Gersinska,K (2437) Germany 2000}) 12. Be2 {[%emt 0:00:40]} Bd7 {[%emt 0:00:06]} 13. a3 {[%emt 0:00:53]} Nc6 {[%emt 0:00:10]} 14. O-O {[%emt 0:00:04]} O-O {[%emt 0:00:14]} 15. Ne5 {[%emt 0:00:09]} Nxe5 {[%emt 0:03:55]} 16. dxe5 {[%emt 0:00:02]} Bc6 {[%emt 0:00:00]} 17. Qxd5 {[%emt 0:00:26]} Bxd5 {[%emt 0:00:02]} 18. f4 {[%emt 0:00:05]} Bc5+ {[%emt 0:00:28]} 19. Kh1 {[%emt 0:00:02]} Rfd8 {[%emt 0:00:49]} 20. Bf3 {[%emt 0:00:14]} Rac8 {[%emt 0:00:59]} 21. g4 {[%emt 0:03:30]} Bd4 {[%emt 0:04:43]} 22. Bxd5 {[%emt 0:02:33]} Rxd5 {[%emt 0:00:01]} 23. Bxd4 {[%emt 0:00:25]} Rxd4 {[%emt 0:00:00]} 24. Rad1 {[%emt 0:00:04]} Rcd8 {[%emt 0:00:31]} 25. Rxd4 {[%emt 0:00:13]} Rxd4 {[%emt 0:00:00]} 26. Kg2 {[%emt 0:00:02]} g5 {[%emt 0:00:09]} 27. Kg3 {[%emt 0:00:29]} Rd2 {[%emt 0:01:05]} 28. f5 {[%emt 0:00:17]} Rxb2 {[%emt 0:00:26]} 29. Rd1 {[%emt 0:00:50]} Rb3+ {[%emt 0:00:11]} 30. Kg2 {[%emt 0:00:01]} Kf8 {[%emt 0:01:06]} ({Much worse is} 30... Rxa3 31. f6 $11) 31. Rd7 {[%emt 0:02:33]} exf5 {[%emt 0:01:02]} (31... Rxa3 32. f6 $14) 32. gxf5 {[%emt 0:00:05]} h5 {[%emt 0:00:08]} 33. f6 {[%emt 0:00:38]} Kg8 $2 {[%emt 0:00:04]} (33... Ke8 $11 34. Re7+ Kf8) 34. Rd8+ {[%emt 0:00:04]} Kh7 {[%emt 0:00:00]} 35. e6 {[%emt 0:00:01]} Rb2+ {[%emt 0:00:07]} 36. Kf3 {[%emt 0:01:09]} g4+ {[%emt 0:01:06]} 37. Ke3 {[%emt 0:00:45]} Rb3+ {[%emt 0:01:35]} 38. Ke4 {[%emt 0:00:07]} fxe6 {[%emt 0:00:38]} 39. f7 {[%emt 0:00:04]} Rf3 {[%emt 0:00:01]} 40. f8=Q {[%emt 0:00:04]} Rxf8 {[%emt 0:00:01]} 41. Rxf8 {[%emt 0:00:02]} Kg6 $18 {[%emt 0:00:04]} 42. Kf4 {[%emt 0:00:18]} b5 {[%emt 0:00:08]} 43. Rb8 {[%emt 0:00:14]} e5+ {[%emt 0:00:31]} 44. Kxe5 {[%emt 0:00:19]} Kg5 {[%emt 0:00:02]} 45. Rg8+ {[%emt 0:00:08]} Kh4 {[%emt 0:00:00]} 46. Kf4 {[%emt 0:00:04]} a5 {[%emt 0:00:01]} 47. Rg5 {[%emt 0:00:35]} b4 {[%emt 0:00:01]} 48. a4 {[%emt 0:00:01]} b3 {[%emt 0:00:01]} 49. Rb5 {[%emt 0:00:01]} Kh3 {[%emt 0:00:02]} 50. Rxh5+ {[%emt 0:00:03]} Kg2 {[%emt 0:00:01]} 51. Kxg4 1-0

[Event "FishPartners Open 2018"]
[Site "Spakenburg"]
[Date "2018.07.07"]
[Round "6"]
[White "Van Foreest, Lucas"]
[Black "Nijboer, Friso"]
[Result "1-0"]
[ECO "B90"]
[WhiteElo "2488"]
[BlackElo "2495"]
[Annotator "ChessBase"]
[PlyCount "127"]
[EventDate "2018.07.07"]
[EventType "swiss"]
[EventCountry "NED"]
[SourceTitle "playchess.com"]
[Source "ChessBase"]
[SourceQuality "1"]
[TimeControl "1500"]

1. e4 c5 2. Nf3 d6 3. d4 cxd4 4. Nxd4 Nf6 5. Nc3 a6 6. Be3 e5 7. Nf3 Qc7 8. a4 Be7 9. a5 Nbd7 10. Nd2 Nc5 11. b4 Ne6 12. Bc4 Nd4 13. O-O Be6 14. Nd5 Bxd5 15. exd5 O-O 16. c3 Nf5 17. Bb6 Qd7 18. Qe2 Bd8 19. Bxd8 Rfxd8 20. Bd3 Nxd5 21. Qf3 Nde7 22. Nc4 Qe6 23. Nb6 Rab8 24. Rad1 d5 25. Bxf5 Qxf5 26. Qxf5 Nxf5 27. Nxd5 f6 28. Nb6 Kf7 29. Nd7 Rbc8 30. Nc5 Nd6 31. Rd5 Ke7 32. Rfd1 h5 33. Kf1 Rc7 34. f4 Nf7 35. Rxd8 Nxd8 36. fxe5 fxe5 37. Rd5 Nf7 38. Ke2 Kf6 39. Ke3 Kf5 40. Rd1 Re7 41. Rd2 h4 42. c4 g5 43. Ne4 Ke6 44. Rf2 Rc7 45. Rf6+ Ke7 46. Rb6 Nd8 47. Nc5 Rc6 48. Ke4 Rxb6 49. axb6 Kd6 50. Kf5 Kc6 51. Kxg5 a5 52. Na4 axb4 53. Kf5 Nf7 54. Nb2 Kxb6 55. Ke6 Nd8+ 56. Kd5 b3 57. g4 hxg3 58. hxg3 Ka5 59. g4 Kb4 60. g5 Kc3 61. Na4+ Kb4 62. Nc5 b6 63. Nxb3 Kxb3 64. g6 1-0

[Event "FishPartners Open 2018"]
[Site "Spakenburg"]
[Date "2018.07.07"]
[Round "6"]
[White "Lai, Hing Ting"]
[Black "Beerdsen, Thomas"]
[Result "0-1"]
[ECO "A40"]
[WhiteElo "2447"]
[BlackElo "2469"]
[Annotator "ChessBase"]
[PlyCount "152"]
[EventDate "2018.07.07"]
[EventType "swiss"]
[EventCountry "NED"]
[SourceTitle "playchess.com"]
[Source "ChessBase"]
[SourceQuality "1"]
[TimeControl "1500"]

1. d4 {[%emt 0:00:01]} e6 {[%emt 0:00:01]} 2. Nf3 {[%emt 0:00:01]} c5 {[%emt 0:00:01]} 3. dxc5 {[%emt 0:00:43]} Bxc5 {[%emt 0:00:06]} 4. e4 {[%emt 0:00:05]} Qb6 {[%emt 0:00:42]} 5. Qd2 {[%emt 0:00:05]} Nf6 {[%emt 0:00:12]} 6. Bd3 {[%emt 0:00:01]} Nc6 {[%emt 0:01:05]} 7. O-O {[%emt 0:01:20]} O-O {[%emt 0:01:32]} 8. e5 {[%emt 0:01:04]} Ng4 {[%emt 0:00:48]} 9. Qe2 {[%emt 0:00:16]} Qc7 {[%emt 0:02:17]} 10. Qe4 {[%emt 0:02:56]} f5 {[%emt 0:00:05]} 11. exf6 {[%emt 0:00:08]} Nxf6 {[%emt 0:00:02]} 12. Qh4 {[%emt 0:00:02]} d5 {[%emt 0:01:33]} 13. Nc3 {[%emt 0:01:29]} a6 {[%emt 0:01:43]} 14. a3 {[%emt 0:01:15]} h6 {[%emt 0:00:20]} 15. Rd1 {[%emt 0:01:02]} Qf7 {[%emt 0:00:40]} 16. Qg3 {[%emt 0:02:36]} Nh5 {[%emt 0:01:40]} 17. Qg6 {[%emt 0:02:57]} Qxg6 {[%emt 0:00:24]} 18. Bxg6 {[%emt 0:00:01]} Nf4 {[%emt 0:00:01]} 19. Bxf4 {[%emt 0:00:35]} Rxf4 {[%emt 0:00:01]} 20. Ne2 {[%emt 0:01:19]} Rf6 {[%emt 0:00:07]} 21. Bh5 {[%emt 0:00:02]} b5 {[%emt 0:00:35]} 22. c3 {[%emt 0:00:37]} Bb7 {[%emt 0:00:04]} 23. Ned4 {[%emt 0:00:11]} Kf8 {[%emt 0:02:31]} 24. Rd2 {[%emt 0:00:15]} Ke7 {[%emt 0:00:10]} 25. Re1 {[%emt 0:00:09]} Kd6 {[%emt 0:00:10]} 26. Bg4 {[%emt 0:00:19]} Re8 {[%emt 0:00:16]} 27. Rde2 {[%emt 0:00:45]} Bc8 {[%emt 0:00:51]} 28. g3 {[%emt 0:00:36]} Nxd4 {[%emt 0:00:43]} 29. cxd4 {[%emt 0:00:05]} Bb6 {[%emt 0:00:02]} 30. Kg2 {[%emt 0:00:02]} g6 {[%emt 0:00:14]} 31. h4 {[%emt 0:00:01]} Ref8 {[%emt 0:00:32]} 32. h5 {[%emt 0:00:07]} g5 {[%emt 0:00:08]} 33. Rd1 {[%emt 0:00:09]} Bd7 {[%emt 0:00:13]} 34. Ne5 {[%emt 0:00:00]} Be8 {[%emt 0:00:01]} 35. Nf3 {[%emt 0:00:27]} R8f7 36. Rde1 Re7 {[%emt 0:00:21]} 37. Rc2 {[%emt 0:00:06]} Bd7 38. Rd1 Bc6 {[%emt 0:00:25]} 39. Ne5 {[%emt 0:00:04]} Bb7 {[%emt 0:00:01]} 40. Re2 {[%emt 0:00:07]} Rc7 {[%emt 0:00:07]} 41. Nf3 {[%emt 0:00:03]} Rc4 {[%emt 0:00:07]} 42. Rde1 {[%emt 0:00:00]} Bc8 {[%emt 0:00:01]} 43. Rd1 {[%emt 0:00:02]} a5 {[%emt 0:00:05]} 44. Red2 {[%emt 0:00:08]} Kc7 {[%emt 0:00:05]} 45. Ne5 {[%emt 0:00:01]} Bb7 {[%emt 0:00:08]} 46. Be2 {[%emt 0:00:05]} Kd6 {[%emt 0:00:08]} 47. Ng4 {[%emt 0:00:01]} Rf7 {[%emt 0:00:06]} 48. Nxh6 {[%emt 0:00:02]} Rh7 {[%emt 0:00:01]} 49. Ng4 {[%emt 0:00:11]} Rxh5 {[%emt 0:00:01]} 50. Ne5 {[%emt 0:00:06]} Rh7 {[%emt 0:00:05]} 51. Nxc4+ {[%emt 0:00:01]} dxc4+ {[%emt 0:00:01]} 52. Bf3 {[%emt 0:00:01]} Bd5 {[%emt 0:00:04]} 53. Re2 {[%emt 0:00:01]} b4 {[%emt 0:00:08]} 54. axb4 {[%emt 0:00:01]} axb4 {[%emt 0:00:01]} 55. Re5 {[%emt 0:00:03]} c3 {[%emt 0:00:05]} 56. bxc3 {[%emt 0:00:01]} bxc3 {[%emt 0:00:01]} 57. Bxd5 {[%emt 0:00:17]} exd5 {[%emt 0:00:02]} 58. Rxg5 {[%emt 0:00:04]} Rf7 {[%emt 0:00:35]} 59. Rg6+ {[%emt 0:00:02]} Kc7 {[%emt 0:00:01]} 60. Rg5 {[%emt 0:00:31]} Kc6 {[%emt 0:00:15]} 61. Rd3 {[%emt 0:00:06]} Bxd4 {[%emt 0:00:03]} 62. Rg6+ {[%emt 0:00:27]} Kc5 {[%emt 0:00:06]} 63. Rg8 {[%emt 0:00:00]} Rxf2+ {[%emt 0:00:11]} 64. Kh3 {[%emt 0:00:00]} Kc4 65. Rd1 {[%emt 0:00:01]} c2 {[%emt 0:00:11]} 66. Rc8+ {[%emt 0:00:00]} Bc5 {[%emt 0:00:07]} 67. Ra1 {[%emt 0:00:09]} d4 {[%emt 0:00:04]} 68. Kg4 {[%emt 0:00:08]} Rf8 {[%emt 0:00:27]} 69. Rc7 {[%emt 0:00:02]} Rg8+ {[%emt 0:00:04]} 70. Kf3 {[%emt 0:00:02]} d3 {[%emt 0:00:03]} 71. Rd7 {[%emt 0:00:01]} Rf8+ 72. Ke4 Re8+ {[%emt 0:00:07]} 73. Kf3 {[%emt 0:00:01]} Bd4 {[%emt 0:00:03]} 74. Ra4+ {[%emt 0:00:11]} Kb5 {[%emt 0:00:01]} 75. Rdxd4 {[%emt 0:00:06]} c1=Q {[%emt 0:00:04]} 76. Rab4+ Kc5 {[%emt 0:00:01] Ke3 Qxe3} 0-1

[Event "FishPartners Open 2018"]
[Site "Spakenburg"]
[Date "2018.07.07"]
[Round "6"]
[White "Van de Griendt, Jan Willem"]
[Black "Dekker, Theo"]
[Result "1-0"]
[ECO "A57"]
[WhiteElo "2335"]
[BlackElo "2031"]
[Annotator "NA"]
[PlyCount "50"]
[EventDate "2018.07.07"]
[EventType "swiss"]
[EventCountry "NED"]
[SourceTitle "playchess.com"]
[Source "ChessBase"]
[SourceQuality "1"]
[TimeControl "1500"]

1. d4 {[%emt 0:00:03]} Nf6 {[%emt 0:00:06]} 2. c4 {[%emt 0:00:01]} c5 {[%emt 0:00:02]} 3. d5 {[%emt 0:00:01]} b5 {[%emt 0:00:01]} 4. cxb5 {[%emt 0:00:00]} a6 {[%emt 0:00:00]} 5. e3 {[%emt 0:00:01]} d6 {[%emt 0:00:11]} 6. Nc3 {[%emt 0:00:03]} g6 {[%emt 0:00:05]} 7. Nf3 {[%emt 0:00:01]} Bg7 {[%emt 0:00:02]} 8. e4 {[%emt 0:00:10]} O-O {[%emt 0:00:25]} 9. a4 {[%emt 0:00:16]} axb5 {[%emt 0:00:49]} 10. Bxb5 {[%emt 0:00:02]} Ba6 {[%emt 0:00:11]} 11. Bg5 {[%emt 0:00:28]} Nbd7 {[%emt 0:00:14]} 12. O-O {[%emt 0:00:08]} Bxb5 {[%emt 0:00:57]} 13. axb5 {[%emt 0:00:02]} h6 {[%emt 0:00:09]} 14. Bf4 {[%emt 0:00:28]} Nh5 {[%emt 0:00:49]} 15. Bd2 {[%emt 0:01:38]} Qc7 {[%emt 0:01:30]} 16. Qe2 {[%emt 0:00:09]} Ra7 {[%emt 0:01:56]} 17. Ra6 {[%emt 0:01:58]} Rxa6 {[%emt 0:03:06]} 18. bxa6 {[%emt 0:00:02]} Rc8 {[%emt 0:00:08]} 19. Ra1 {[%emt 0:00:12]} Qb6 {[%emt 0:00:29]} 20. Ra2 {[%emt 0:05:24]} c4 {[%emt 0:00:43]} 21. Be3 {[%emt 0:00:09]} Qb3 {[%emt 0:00:21]} 22. Nd2 {[%emt 0:00:41]} Qb4 {[%emt 0:01:07]} 23. a7 {[%emt 0:00:07]} Qb7 {[%emt 0:00:35]} 24. Qxc4 {[%emt 0:00:24]} Rxc4 {[%emt 0:00:28]} 25. a8=Q+ {[%emt 0:00:04]} Rc8 1-0

[Event "FishPartners Open 2018"]
[Site "Spakenburg"]
[Date "2018.07.07"]
[Round "6"]
[White "Bohm, Hans"]
[Black "Bosboom, Manuel"]
[Result "0-1"]
[ECO "A41"]
[WhiteElo "2307"]
[BlackElo "2403"]
[Annotator "NA"]
[PlyCount "77"]
[EventDate "2018.07.07"]
[EventType "swiss"]
[EventCountry "NED"]
[SourceTitle "playchess.com"]
[Source "ChessBase"]
[SourceQuality "1"]
[TimeControl "1500"]

1. d4 {[%emt 0:00:00]} d6 {[%emt 0:00:05]} 2. c3 {[%emt 0:00:26]} Nd7 {[%emt 0:00:05]} 3. Bg5 {[%emt 0:00:04]} h6 {[%emt 0:00:04]} 4. Bh4 {[%emt 0:00:02]} Ngf6 {[%emt 0:00:04]} 5. Nd2 {[%emt 0:00:05]} e5 {[%emt 0:00:10]} 6. e3 {[%emt 0:00:05]} Be7 {[%emt 0:00:02]} 7. Bd3 {[%emt 0:00:11]} O-O {[%emt 0:00:11]} 8. Ngf3 {[%emt 0:00:39]} Re8 {[%emt 0:01:56]} 9. Bf5 {[%emt 0:01:35]} b6 {[%emt 0:00:32]} 10. dxe5 {[%emt 0:01:03]} dxe5 {[%emt 0:00:16]} 11. Nc4 {[%emt 0:01:20]} e4 {[%emt 0:01:08]} 12. Nd4 {[%emt 0:00:57]} Nc5 {[%emt 0:00:26]} 13. O-O $1 {[%emt 0:00:42]} Ba6 {[%emt 0:00:55]} 14. b3 $17 {[%emt 0:00:23]} (14. Ne5 $1 $11 {war der einzige Weg, das Gleichgewicht zu behalten.}) 14... Qd5 {[%emt 0:00:08]} 15. Bg3 {[%emt 0:02:57]} c6 {[%emt 0:03:17]} 16. Ne5 {[%emt 0:00:22]} Bxf1 {[%emt 0:00:14]} 17. Qxf1 {[%emt 0:00:06]} Bd6 {[%emt 0:00:21]} 18. c4 {[%emt 0:00:14]} Qxe5 {[%emt 0:00:02]} 19. Bxe5 {[%emt 0:00:03]} Bxe5 {[%emt 0:00:28]} 20. Rd1 {[%emt 0:00:12]} g6 {[%emt 0:00:16]} 21. Bh3 {[%emt 0:00:06]} Bxd4 {[%emt 0:00:05]} 22. Rxd4 {[%emt 0:01:16]} Rad8 {[%emt 0:00:51]} 23. f3 {[%emt 0:00:48]} exf3 {[%emt 0:01:31]} 24. gxf3 {[%emt 0:00:10]} Kg7 {[%emt 0:00:49]} 25. Kf2 {[%emt 0:00:21]} Rb8 {[%emt 0:02:50]} 26. Qd1 {[%emt 0:00:47]} Re5 {[%emt 0:00:08]} 27. b4 {[%emt 0:00:25]} Rh5 {[%emt 0:00:50]} 28. Bg4 {[%emt 0:00:48]} Rxh2+ {[%emt 0:00:03]} 29. Kg3 {[%emt 0:00:05]} Rxa2 {[%emt 0:00:05]} 30. bxc5 {[%emt 0:00:06]} bxc5 {[%emt 0:00:01]} 31. Rf4 {[%emt 0:02:00]} Rbb2 {[%emt 0:01:12]} 32. Rxf6 {[%emt 0:00:32]} Kxf6 {[%emt 0:00:24]} 33. Qd6+ {[%emt 0:00:09]} Kg7 {[%emt 0:00:01]} 34. Qe5+ {[%emt 0:00:33]} Kg8 {[%emt 0:00:01]} 35. Kf4 {[%emt 0:01:23]} Rc2 {[%emt 0:01:04]} 36. Be6 {[%emt 0:01:21]} Rab2 {[%emt 0:00:26]} 37. Qxc5 {[%emt 0:00:20]} fxe6 {[%emt 0:00:31]} 38. Ke5 {[%emt 0:00:04]} Rb5 39. Kf4 0-1

[Event "FishPartners Open 2018"]
[Site "Spakenburg"]
[Date "2018.07.07"]
[Round "6"]
[White "Amesz, Jaap"]
[Black "Van der Wiel, John T H"]
[Result "1/2-1/2"]
[ECO "A46"]
[WhiteElo "2191"]
[BlackElo "2389"]
[Annotator "NA"]
[PlyCount "110"]
[EventDate "2018.07.07"]
[EventType "swiss"]
[EventCountry "NED"]
[SourceTitle "playchess.com"]
[Source "ChessBase"]
[SourceQuality "1"]
[TimeControl "1500"]

1. d4 {[%emt 0:00:02]} Nf6 {[%emt 0:00:02]} 2. Nf3 {[%emt 0:00:02]} e6 {[%emt 0:00:06]} 3. c4 {[%emt 0:00:04]} d5 {[%emt 0:00:02]} 4. e3 {[%emt 0:00:16]} Be7 {[%emt 0:00:07]} 5. Nc3 {[%emt 0:00:03]} O-O {[%emt 0:00:07]} 6. Bd3 {[%emt 0:00:03]} b6 {[%emt 0:00:25]} 7. O-O Bb7 8. Qe2 {[%emt 0:02:02] LiveBook: 81 Games} Nbd7 {[%emt 0:00:37]} 9. Rd1 {[%emt 0:00:52]} a6 {[%emt 0:00:36]} 10. b3 {[%emt 0:00:40]} Ne4 {[%emt 0:01:53]} 11. Bb2 {[%emt 0:01:58]} f5 {[%emt 0:00:07]} 12. Rac1 Bd6 {[%emt 0:00:57]} 13. Nd2 {[%emt 0:02:43]} Qh4 {[%emt 0:00:33]} 14. g3 $11 Qh6 {[%emt 0:00:23]} 15. f4 {[%emt 0:01:15]} Nxd2 {[%emt 0:04:56]} 16. Rxd2 {[%emt 0:00:33]} Rf7 {[%emt 0:00:46]} 17. Kf1 {[%emt 0:00:31]} Qh3+ {[%emt 0:00:41]} 18. Ke1 {[%emt 0:00:04]} Nf6 {[%emt 0:00:07]} 19. Kd1 {[%emt 0:00:20]} Ne4 {[%emt 0:02:13]} 20. Bxe4 {[%emt 0:00:33]} fxe4 {[%emt 0:00:02]} 21. c5 {[%emt 0:01:03]} bxc5 {[%emt 0:01:31]} 22. dxc5 {[%emt 0:00:01]} Bf8 {[%emt 0:00:14]} 23. b4 {[%emt 0:03:42]} c6 {[%emt 0:00:04]} 24. a4 {[%emt 0:01:21]} e5 {[%emt 0:00:25]} 25. a5 {[%emt 0:00:17]} Bc8 {[%emt 0:00:20]} 26. Kc2 {[%emt 0:00:01]} Bg4 {[%emt 0:00:29]} 27. Qg2 {[%emt 0:00:05]} Qh5 {[%emt 0:00:39]} 28. Ne2 {[%emt 0:00:54]} Rb8 {[%emt 0:00:51]} 29. Bc3 {[%emt 0:00:07]} Bf3 {[%emt 0:00:25]} 30. Qf2 {[%emt 0:00:06]} g5 {[%emt 0:00:31]} 31. fxe5 {[%emt 0:00:08]} Bg4 {[%emt 0:00:06]} 32. Qg2 {[%emt 0:00:12]} Rf3 {[%emt 0:00:26]} 33. Qg1 Qe8 34. Nd4 Rf7 35. Rf1 Rbb7 36. Rxf7 Rxf7 37. Rf2 Rxf2+ 38. Qxf2 Bg7 39. Qf1 Qc8 40. e6 Bf3 41. Nxf3 exf3 42. Bxg7 Kxg7 43. Qxf3 Qxe6 44. Qe2 d4 45. Qxa6 dxe3 46. Qe2 Qa2+ 47. Kd3 Qb3+ 48. Ke4 Qxb4+ 49. Kxe3 Qxc5+ 50. Kf3 Qf5+ 51. Kg2 Qxa5 52. Qe7+ Kg6 53. Qe6+ Kg7 54. Qe7+ {[%emt 0:04:22]} Kg6 {[%emt 0:03:37]} 55. Qe6+ {[%emt 0:00:05]} Kg7 1/2-1/2

[Event "FishPartners Open 2018"]
[Site "Spakenburg"]
[Date "2018.07.07"]
[Round "7"]
[White "Nijboer, Friso"]
[Black "Vedder, Richard"]
[Result "1-0"]
[ECO "C55"]
[WhiteElo "2495"]
[BlackElo "2284"]
[Annotator "ChessBase"]
[PlyCount "57"]
[EventDate "2018.07.07"]
[EventType "swiss"]
[EventCountry "NED"]
[SourceTitle "playchess.com"]
[Source "ChessBase"]
[SourceQuality "1"]
[TimeControl "1500"]

1. e4 e5 2. Nf3 Nc6 3. Bc4 Nf6 4. d3 h6 5. O-O d6 6. Nbd2 g5 7. c3 Be6 8. b4 Qd7 9. Bb2 O-O-O 10. Qb3 d5 11. exd5 Bxd5 12. Rfe1 Bg7 13. b5 Na5 14. Qa4 Bxc4 15. Nxc4 Nxc4 16. dxc4 Kb8 17. Nxe5 Qf5 18. Qb3 Rd2 19. Nf3 Rd3 20. Nd4 Qg6 21. Nc6+ Ka8 22. Ne5 Qf5 23. Nxd3 Qxd3 24. Rad1 {[%emt 0:16:16]} Qf5 {[%emt 0:11:20]} 25. c5 Ng4 26. Re2 {[%emt 0:02:21]} Be5 27. h3 Qf4 28. g3 Qf3 29. Qd5 1-0